bitfinex/quotes_BTCUSD_20220211
["timestamp","ask_amount","ask_price","bid_price","bid_amount"]
[1644561916871,0.00209797,43285.0,43284.0,0.00258294]
[1644561917872,0.31317126,43285.0,43282.0,0.00064315]
[1644561918086,0.36317126,43285.0,43282.0,0.00064315]
[1644561918272,0.0463,43284.0,43282.0,0.00064315]
[1644561918673,0.0463,43284.0,43278.0,0.00058159]
[1644561918875,0.34251318,43280.0,43278.0,0.00058159]
[1644561919073,0.0463,43279.0,43278.0,0.00058159]
[1644561919274,0.0463,43279.0,43278.0,0.39965708]
[1644561919471,0.0463,43279.0,43278.0,0.00058159]
[1644561920712,0.43802536,43279.0,43278.0,0.00058159]
[1644561921111,0.43477836,43279.0,43278.0,0.00058159]
[1644561924873,0.043053,43279.0,43278.0,0.00058159]
[1644561925472,0.00208453,43279.0,43278.0,0.00058159]
[1644561926074,0.00208453,43279.0,43277.0,0.05771359]
[1644561927372,0.00208453,43279.0,43276.0,0.1]
[1644561927619,0.39072801,43277.0,43276.0,0.00055051]
[1644561928417,0.39072801,43277.0,43273.0,0.05]
[1644561928618,0.39072801,43277.0,43274.0,0.00055053]
[1644561928819,0.39072801,43277.0,43274.0,0.05835539]
[1644561929219,0.39072801,43277.0,43274.0,0.11615839]
[1644561929419,0.39072801,43277.0,43274.0,0.05768939]
[1644561929718,0.39072801,43277.0,43274.0,0.05713886]
[1644561930319,0.44072801,43277.0,43274.0,0.05713886]
[1644561931364,0.44072801,43277.0,43273.0,0.00053626]
[1644561931762,0.39072801,43277.0,43273.0,0.00053626]
[1644561932565,0.39072801,43277.0,43273.0,0.05053626]
[1644561933267,0.39072801,43277.0,43273.0,0.05]
[1644561933468,0.39072801,43277.0,43273.0,0.05053801]
[1644561933667,0.39072801,43277.0,43274.0,0.057803]
[1644561933868,0.39072801,43277.0,43274.0,0.11560749]
[1644561934067,0.34822882,43276.0,43274.0,0.11560749]
[1644561934267,0.39072801,43277.0,43274.0,0.11560749]
[1644561935115,0.00100982,43276.0,43274.0,0.11560749]
[1644561939872,0.00106918,43276.0,43274.0,0.11560749]
[1644561945622,0.00160879,43276.0,43274.0,0.11560749]
[1644561947168,0.00160879,43276.0,43274.0,0.05780449]
[1644561947371,0.00160879,43276.0,43275.0,0.05]
[1644561947769,0.00160879,43276.0,43274.0,0.05804807]
[1644561947969,0.00160879,43276.0,43274.0,0.05780449]
[1644561948572,0.00160879,43276.0,43275.0,0.05]
[1644561949473,0.00160879,43276.0,43274.0,0.05804807]
[1644561949672,0.00160879,43276.0,43274.0,0.05780449]
[1644561950137,0.68116974,43281.0,43274.0,0.05780449]
[1644561950138,0.67636253,43281.0,43274.0,0.05780449]
[1644561950337,0.67636253,43281.0,43274.0,0.05804807]
[1644561950539,0.25995859,43280.0,43274.0,0.05804807]
[1644561950842,0.000444,43277.0,43274.0,0.00024358]
[1644561951037,0.000444,43277.0,43273.0,0.00053768]
[1644561951239,0.000444,43277.0,43270.0,0.00024358]
[1644561951437,0.000444,43277.0,43273.0,0.00053766]
[1644561951639,0.36178524,43274.0,43273.0,0.00053766]
[1644561951838,0.62962088,43274.0,43273.0,0.00053766]
[1644561952037,0.36178524,43274.0,43273.0,0.25742529]
[1644561952441,0.36178524,43274.0,43273.0,0.25688763]
[1644561952739,0.36178524,43274.0,43273.0,0.10781214]
[1644561953776,0.36178524,43274.0,43273.0,0.05781214]
[1644561955272,0.36178524,43274.0,43273.0,0.05979254]
[1644561956472,0.057807,43278.0,43273.0,0.05979254]
[1644561956673,0.0463,43279.0,43274.0,0.11561005]
[1644561957073,0.0463,43279.0,43274.0,0.11585363]
[1644561957519,0.27470105,43275.0,43274.0,0.11639128]
[1644561957724,0.27470105,43275.0,43274.0,0.1161477]
[1644561958521,0.27470105,43275.0,43274.0,0.11561005]
[1644561958722,0.27458401,43275.0,43274.0,0.11561005]
[1644561959421,0.30494944,43277.0,43274.0,0.11561005]
[1644561959626,0.009259,43283.0,43276.0,0.057798]
[1644561959822,0.0578,43283.0,43276.0,0.057798]
[1644561960227,0.0578,43283.0,43275.0,0.00197756]
[1644561960621,0.6488716,43280.0,43275.0,0.00197756]
[1644561960921,0.64772491,43280.0,43277.0,0.05779949]
[1644561961121,0.64772491,43280.0,43277.0,0.05833711]
[1644561961872,0.28911564,43279.0,43277.0,0.05833711]
[1644561962070,0.28911564,43279.0,43277.0,0.05779949]
[1644561964272,0.057804,43281.0,43277.0,0.05779949]
[1644561964273,0.057804,43281.0,43278.0,0.19907549]
[1644561964475,0.0463,43285.0,43278.0,0.10779911]
[1644561965119,0.0463,43285.0,43278.0,0.1097793]
[1644561965318,0.0463,43285.0,43279.0,0.14907549]
[1644561965622,0.32655984,43282.0,43280.0,0.05779978]
[1644561965819,0.32655984,43282.0,43280.0,0.05833736]
[1644561966821,0.32655984,43282.0,43280.0,0.05779978]
[1644561969770,0.37655984,43282.0,43280.0,0.05779978]
[1644561971773,0.32655984,43282.0,43280.0,0.05779978]
[1644561972822,0.31298594,43286.0,43281.0,0.19907549]
[1644561973021,0.31298594,43286.0,43282.0,0.05779811]
[1644561973822,0.56608589,43286.0,43282.0,0.05779811]
[1644561974123,0.62388289,43286.0,43282.0,0.05779811]
[1644561974325,0.62388289,43286.0,43282.0,0.05833567]
[1644561974724,0.05,43285.0,43282.0,0.05833567]
[1644561975326,0.05,43285.0,43282.0,0.05779811]
[1644561976771,0.37078194,43286.0,43282.0,0.05779811]
[1644561976969,0.64258856,43286.0,43282.0,0.05779811]
[1644561977771,0.58479256,43286.0,43282.0,0.05779811]
[1644561978070,0.58479256,43286.0,43282.0,0.05833567]
[1644561978872,0.64258956,43286.0,43282.0,0.05779811]
[1644561979073,0.64258956,43286.0,43282.0,0.05833567]
[1644561980118,0.64258956,43286.0,43282.0,0.05779811]
[1644561980319,0.64258956,43286.0,43283.0,0.0019772]
[1644561980919,0.64243293,43286.0,43283.0,0.0019772]
[1644561981121,0.05,43285.0,43283.0,0.0019772]
[1644561981520,0.64243293,43286.0,43283.0,0.0019772]
[1644561981720,0.64243293,43286.0,43283.0,0.05977127]
[1644561982619,0.64243293,43286.0,43283.0,0.0019772]
[1644561983906,0.64061657,43286.0,43283.0,0.0019772]
[1644561984307,0.63938255,43286.0,43283.0,0.0019772]
[1644561985005,0.63938255,43286.0,43281.0,0.05200774]
[1644561985205,0.63938255,43286.0,43282.0,0.05833435]
[1644561986208,0.63938255,43286.0,43282.0,0.0577968]
[1644561986408,0.63938255,43286.0,43282.0,0.05833436]
[1644561986808,0.36757593,43286.0,43282.0,0.05833436]
[1644561987407,0.36757593,43286.0,43282.0,0.0577968]
[1644561987621,0.36757593,43286.0,43282.0,0.05833436]
[1644561988521,0.36757593,43286.0,43282.0,0.0577968]
[1644561988725,0.36757593,43286.0,43282.0,0.11612836]
[1644561988922,0.36757593,43286.0,43282.0,0.05833436]
[1644561989521,0.36757593,43286.0,43283.0,0.0019772]
[1644561991992,0.31298594,43286.0,43283.0,0.05977143]
[1644561993673,0.31298594,43286.0,43283.0,0.0019772]
[1644561993674,0.37078294,43286.0,43283.0,0.0019772]
[1644561994473,0.37078294,43286.0,43282.0,0.05776326]
[1644561994674,0.37078294,43286.0,43282.0,0.05830081]
[1644561995122,0.37078294,43286.0,43282.0,0.05725131]
[1644561995722,0.37078294,43286.0,43282.0,0.05671376]
[1644561995923,0.37078294,43286.0,43282.0,0.00053756]
[1644561996823,0.31298594,43286.0,43281.0,0.14907549]
[1644561997023,0.31298594,43286.0,43282.0,0.00053756]
[1644561998024,0.31298594,43286.0,43282.0,0.05779587]
[1644561998224,0.31298594,43286.0,43282.0,0.05833343]
[1644561999370,0.31298594,43286.0,43282.0,0.05779587]
[1644562000171,0.37078394,43286.0,43282.0,0.05779587]
[1644562000371,0.00164579,43285.0,43280.0,0.05779888]
[1644562001971,0.05944479,43285.0,43280.0,0.20750167]
[1644562002925,0.00164579,43285.0,43280.0,0.05779888]
[1644562003125,0.05944379,43285.0,43280.0,0.05842618]
[1644562003526,0.05933479,43285.0,43280.0,0.20750167]
[1644562004026,0.05933479,43285.0,43280.0,0.05779888]
[1644562004226,0.05933479,43285.0,43280.0,0.20750167]
[1644562004429,0.05933479,43285.0,43280.0,0.05842618]
[1644562004627,0.05933479,43285.0,43280.0,0.20750167]
[1644562005328,0.00077645,43283.0,43280.0,0.20687437]
[1644562005529,0.00077645,43283.0,43281.0,0.057795]
[1644562005731,0.00077645,43283.0,43281.0,0.11558921]
[1644562005930,0.00077645,43283.0,43281.0,0.05779421]
[1644562006574,0.00077645,43283.0,43278.0,0.05]
[1644562006575,0.05857645,43283.0,43278.0,0.05]
[1644562006775,0.29008246,43279.0,43278.0,0.10780037]
[1644562008777,0.29008246,43279.0,43278.0,0.05]
[1644562009775,0.29239095,43279.0,43278.0,0.05]
[1644562013976,0.29239095,43279.0,43277.0,0.00024358]
[1644562014278,0.29239095,43279.0,43276.0,0.0008556]
[1644562014279,0.35019795,43279.0,43276.0,0.0008556]
[1644562014475,0.35019795,43279.0,43276.0,0.00061202]
[1644562014680,0.0463,43278.0,43276.0,0.00061202]
[1644562014878,0.34396315,43277.0,43276.0,0.00061202]
[1644562015076,0.057822,43276.0,43273.0,0.00024358]
[1644562015275,0.0463,43275.0,43272.0,0.03]
[1644562015476,0.0963,43275.0,43272.0,0.03]
[1644562016277,0.115642,43274.0,43272.0,0.03]
[1644562016478,0.0463,43273.0,43272.0,0.03]
[1644562016878,0.35512084,43273.0,43272.0,0.03]
[1644562017184,0.40512084,43273.0,43272.0,0.03]
[1644562017381,0.45512084,43273.0,43272.0,0.03]
[1644562019827,0.45512084,43273.0,43271.0,0.00024358]
[1644562019828,0.7,43272.0,43271.0,0.00024358]
[1644562020025,0.7,43272.0,43258.0,0.118]
[1644562020026,0.05783521,43270.0,43262.0,0.00024358]
[1644562020226,0.05783521,43270.0,43258.0,0.118]
[1644562020227,0.39750423,43269.0,43260.0,0.00024358]
[1644562020425,0.44750423,43269.0,43259.0,0.00024358]
[1644562020626,0.34987242,43260.0,43258.0,0.118]
[1644562020925,0.33852754,43264.0,43255.0,0.00024358]
[1644562020926,0.28902715,43261.0,43255.0,0.00024358]
[1644562021126,0.057834,43260.0,43254.0,0.88288717]
[1644562021383,0.057834,43260.0,43257.0,0.00053996]
[1644562022282,0.057834,43260.0,43257.0,0.00078354]
[1644562022485,0.057834,43260.0,43257.0,0.00024358]
[1644562022682,0.057834,43260.0,43256.0,0.00053996]
[1644562023083,0.057834,43260.0,43256.0,0.00078354]
[1644562023284,0.1125,43268.0,43259.0,0.05]
[1644562023488,0.1125,43268.0,43264.0,0.07924356]
[1644562023684,0.0463,43270.0,43264.0,0.13706145]
[1644562024184,0.00236509,43273.0,43266.0,0.33490927]
[1644562024185,0.28370619,43271.0,43266.0,0.33490927]
[1644562024583,0.28370619,43271.0,43266.0,0.33515285]
[1644562024786,0.00236509,43273.0,43271.0,0.06703464]
[1644562025032,0.00236509,43273.0,43272.0,0.05]
[1644562025225,0.1682,43287.0,43272.0,0.05]
[1644562025424,0.1682,43287.0,43273.0,0.14907549]
[1644562025425,0.057804,43286.0,43273.0,0.14907549]
[1644562025626,0.057804,43286.0,43272.0,0.00024358]
[1644562025823,0.057804,43286.0,43274.0,0.05]
[1644562025824,0.26828793,43276.0,43274.0,0.05]
[1644562026824,0.32751395,43277.0,43274.0,0.05]
[1644562027024,0.32751395,43277.0,43274.0,0.05024358]
[1644562028125,0.65344976,43277.0,43274.0,0.00024358]
[1644562028326,0.65344976,43277.0,43274.0,0.05]
[1644562028525,0.65344976,43277.0,43274.0,0.05024358]
[1644562028780,0.65344976,43277.0,43274.0,0.00024358]
[1644562028975,0.65344976,43277.0,43273.0,0.00053881]
[1644562029376,0.057819,43276.0,43273.0,0.00053881]
[1644562029775,0.70344976,43277.0,43273.0,0.00053882]
[1644562029977,0.0015678,43276.0,43273.0,0.00053882]
[1644562030876,0.0015678,43276.0,43270.0,0.00024358]
[1644562031075,0.0015678,43276.0,43272.0,0.00053882]
[1644562032076,0.0015678,43276.0,43273.0,0.05781073]
[1644562032729,0.0015678,43276.0,43273.0,0.05805431]
[1644562033530,0.0015678,43276.0,43273.0,0.05781073]
[1644562033730,0.0015678,43276.0,43273.0,0.05805431]
[1644562033933,0.0015678,43276.0,43273.0,0.00024358]
[1644562034130,0.0015678,43276.0,43272.0,0.00053725]
[1644562034532,0.0015678,43276.0,43275.0,0.38566141]
[1644562035133,0.0023058,43276.0,43275.0,0.38566141]
[1644562035333,0.0023058,43276.0,43274.0,0.115852]
[1644562035536,0.0023058,43276.0,43274.0,0.11560842]
[1644562039484,0.0023058,43276.0,43273.0,0.0508473]
[1644562039681,0.0023058,43276.0,43273.0,0.05060372]
[1644562039882,0.00083628,43275.0,43273.0,0.05060372]
[1644562040322,0.32606077,43274.0,43273.0,0.05060372]
[1644562040526,0.92967794,43274.0,43273.0,0.05]
[1644562040731,0.97967794,43274.0,43273.0,0.05]
[1644562043780,0.97967794,43274.0,43273.0,0.04993509]
[1644562045375,0.98197198,43274.0,43273.0,0.04993509]
[1644562049925,0.98280739,43274.0,43273.0,0.04993509]
[1644562052271,0.25,43273.0,43271.0,0.00053371]
[1644562052474,0.35133301,43272.0,43271.0,0.00025406]
[1644562052671,0.58264101,43272.0,43271.0,0.00053371]
[1644562052871,0.56103101,43272.0,43271.0,0.00053371]
[1644562053675,0.3825696,43267.0,43264.0,0.00025406]
[1644562053874,0.3825696,43267.0,43263.0,0.00025406]
[1644562054075,0.3825696,43267.0,43265.0,0.05]
[1644562054474,0.3825696,43267.0,43263.0,0.00025406]
[1644562054673,0.3825696,43267.0,43265.0,0.05]
[1644562055128,0.27509773,43269.0,43264.0,0.00025406]
[1644562055326,0.32509773,43269.0,43265.0,0.05]
[1644562055528,0.32509773,43269.0,43265.0,0.10782291]
[1644562055728,0.32204244,43270.0,43265.0,0.10782291]
[1644562055933,0.26806768,43269.0,43265.0,0.10782291]
[1644562056234,0.3011256,43267.0,43265.0,0.05835712]
[1644562056836,0.00312945,43274.0,43267.0,0.05781712]
[1644562057032,0.00312945,43274.0,43272.0,0.19907549]
[1644562057633,0.00312945,43274.0,43272.0,0.05]
[1644562057833,0.00312945,43274.0,43273.0,0.39534363]
[1644562058232,0.00312945,43274.0,43272.0,0.05025406]
[1644562058431,0.00312945,43274.0,43271.0,0.0580623]
[1644562058632,0.00312945,43274.0,43271.0,0.05859637]
[1644562059684,0.00312945,43274.0,43271.0,0.0580623]
[1644562061888,0.00312945,43274.0,43273.0,0.05]
[1644562065631,0.32258258,43274.0,43273.0,0.05]
[1644562066874,0.00312945,43274.0,43273.0,0.05]
[1644562070030,0.00312945,43274.0,43273.0,0.12013498]
[1644562070430,0.00312945,43274.0,43273.0,0.40697557]
[1644562070729,0.00312945,43274.0,43273.0,0.33684059]
[1644562070929,0.00312945,43274.0,43273.0,0.15]
[1644562072032,0.00312945,43274.0,43273.0,0.05]
[1644562074478,0.00312945,43274.0,43273.0,0.04990839]
[1644562079832,0.00304382,43274.0,43273.0,0.04990839]
[1644562082079,0.00304382,43274.0,43273.0,50.04990839]
[1644562082279,0.00304382,43274.0,43273.0,50.14990839]
[1644562083281,0.00304382,43274.0,43273.0,50.04990839]
[1644562085630,0.05,43277.0,43273.0,50.10771439]
[1644562085830,0.00148586,43274.0,43273.0,50.10771687]
[1644562086331,0.00148586,43274.0,43273.0,50.20825092]
[1644562087330,0.00148586,43274.0,43273.0,50.20771687]
[1644562088976,0.00148586,43274.0,43273.0,50.25771687]
[1644562090385,0.057805,43281.0,43275.0,0.05780456]
[1644562091186,0.057805,43279.0,43276.0,0.00053401]
[1644562091380,0.057805,43279.0,43277.0,0.32539315]
[1644562091582,0.107805,43281.0,43277.0,0.32539315]
[1644562091882,0.107805,43281.0,43277.0,0.42539315]
[1644562092083,0.05,43281.0,43277.0,0.42539315]
[1644562092283,0.057802,43282.0,43277.0,0.42592715]
[1644562092527,0.05,43281.0,43279.0,0.0751126]
[1644562092726,0.05,43284.0,43279.0,0.13291363]
[1644562092929,0.05,43284.0,43279.0,0.05780103]
[1644562093129,0.05,43284.0,43280.0,0.04990839]
[1644562093328,0.057801,43286.0,43284.0,0.00148529]
[1644562093732,0.115602,43286.0,43284.0,0.00148529]
[1644562094230,0.057801,43286.0,43284.0,0.00148529]
[1644562095231,0.107796,43287.0,43284.0,0.36064802]
[1644562096674,0.107796,43287.0,43284.0,0.00148529]
[1644562096675,0.05,43287.0,43284.0,0.00148529]
[1644562096877,0.057797,43286.0,43284.0,0.00148529]
[1644562097076,0.25365252,43285.0,43284.0,0.00148529]
[1644562097275,0.52754824,43285.0,43284.0,0.00148529]
[1644562097475,0.27389572,43285.0,43284.0,0.00148529]
[1644562097778,0.67451432,43285.0,43284.0,0.00148529]
[1644562097981,0.32669872,43285.0,43284.0,0.00148529]
[1644562098179,0.057797,43286.0,43284.0,0.00148529]
[1644562098378,0.58587626,43285.0,43284.0,0.00148529]
[1644562098775,0.34478191,43285.0,43284.0,0.00148529]
[1644562099177,0.057802,43285.0,43284.0,0.00148529]
[1644562099379,0.32340709,43285.0,43284.0,0.00148529]
[1644562099778,0.26560509,43285.0,43284.0,0.00148529]
[1644562100226,0.59025894,43285.0,43284.0,0.00148529]
[1644562100427,0.59025894,43285.0,43284.0,0.00293488]
[1644562100630,0.057797,43286.0,43284.0,0.00293488]
[1644562100827,0.34151186,43286.0,43284.0,0.00293488]
[1644562101028,0.26994411,43285.0,43284.0,0.00293488]
[1644562112378,0.31624411,43285.0,43284.0,0.00293488]
[1644562113382,0.0463,43285.0,43284.0,0.00293488]
[1644562113686,0.173399,43287.0,43284.0,0.35201037]
[1644562113885,0.001,43290.0,43286.0,0.04990839]
[1644562114079,0.001,43290.0,43287.0,0.04990839]
[1644562114478,0.2578647,43290.0,43287.0,0.04990839]
[1644562114678,0.2578647,43290.0,43284.0,0.15284327]
[1644562114879,0.2578647,43290.0,43284.0,0.05284327]
[1644562114880,0.3156607,43290.0,43284.0,0.05284327]
[1644562115134,0.3656607,43290.0,43284.0,0.00293488]
[1644562115936,0.057798,43289.0,43284.0,0.00293488]
[1644562116238,0.057804,43289.0,43284.0,0.00293488]
[1644562116436,0.115604,43289.0,43284.0,0.00293488]
[1644562116835,0.05,43288.0,43284.0,0.00293488]
[1644562117235,0.31450875,43285.0,43284.0,0.00293488]
[1644562119080,0.35,43284.0,43282.0,0.00058406]
[1644562119282,0.0463,43283.0,43282.0,0.00058406]
[1644562119878,0.0463,43283.0,43273.0,50.0]
[1644562120091,0.0463,43283.0,43280.0,0.00058409]
[1644562120278,0.231248,43282.0,43280.0,0.00058409]
[1644562120477,0.104112,43281.0,43280.0,0.00058409]
[1644562121079,0.104112,43281.0,43278.0,0.24818989]
[1644562121280,0.104112,43281.0,43278.0,0.24877401]
[1644562121880,0.219732,43281.0,43278.0,0.24877401]
[1644562122281,0.219732,43281.0,43278.0,0.24818989]
[1644562123255,0.16192,43281.0,43278.0,0.24818989]
[1644562123755,0.0463,43281.0,43278.0,0.24818989]
[1644562124157,0.0463,43281.0,43280.0,0.31163125]
[1644562126398,0.0463,43281.0,43280.0,0.41163125]
[1644562126802,0.0463,43281.0,43280.0,0.31163125]
[1644562126998,0.0463,43281.0,43278.0,0.44717377]
[1644562127197,0.104107,43281.0,43278.0,0.44771704]
[1644562128198,0.154107,43281.0,43278.0,0.44717377]
[1644562129199,0.0963,43281.0,43278.0,0.24818989]
[1644562130035,0.09863601,43281.0,43278.0,0.24818989]
[1644562130334,0.15644601,43281.0,43278.0,0.24818989]
[1644562130535,0.15644601,43281.0,43277.0,0.32251947]
[1644562130536,0.27827339,43280.0,43277.0,0.00054175]
[1644562130735,0.27827339,43280.0,43273.0,50.0]
[1644562130736,0.33608339,43280.0,43273.0,50.0]
[1644562130937,0.33608339,43280.0,43277.0,0.00054175]
[1644562131335,0.0463,43279.0,43277.0,0.00054175]
[1644562131535,0.3620127,43279.0,43278.0,0.23691898]
[1644562131735,0.4198247,43279.0,43278.0,0.23691898]
[1644562131941,0.161923,43279.0,43278.0,0.23691898]
[1644562132137,0.0463,43279.0,43278.0,0.23691898]
[1644562133786,0.11014501,43281.0,43278.0,0.23691898]
[1644562134585,0.11014501,43281.0,43280.0,0.24990839]
[1644562134586,0.05233601,43281.0,43280.0,0.24990839]
[1644562134781,0.05233601,43281.0,43280.0,0.04990839]
[1644562134981,0.05,43281.0,43280.0,0.04990839]
[1644562135481,0.05,43281.0,43278.0,0.29472302]
[1644562135782,0.05,43281.0,43278.0,0.29488613]
[1644562136581,0.05,43281.0,43278.0,0.23691898]
[1644562136985,0.05,43281.0,43280.0,0.24990839]
[1644562137186,0.0463,43284.0,43280.0,0.24990839]
[1644562137384,0.28571329,43283.0,43278.0,0.23691898]
[1644562137629,0.28193181,43286.0,43280.0,0.05780138]
[1644562137828,0.28193181,43286.0,43278.0,0.38599447]
[1644562138029,0.33973581,43286.0,43278.0,0.38617805]
[1644562138329,0.057804,43284.0,43278.0,0.38617805]
[1644562138530,0.27432998,43283.0,43278.0,0.00018358]
[1644562138728,0.32432998,43283.0,43278.0,0.00018358]
[1644562138931,0.05,43283.0,43278.0,0.00018358]
[1644562139129,0.05781,43282.0,43276.0,0.04990839]
[1644562139330,0.05781,43282.0,43278.0,0.00018358]
[1644562139529,0.39629602,43281.0,43278.0,0.00018358]
[1644562139733,0.057811,43280.0,43278.0,0.00018358]
[1644562140332,0.057811,43280.0,43276.0,0.04990839]
[1644562140533,0.057811,43280.0,43277.0,0.23474615]
[1644562141582,0.3250088,43280.0,43277.0,0.23456394]
[1644562141784,0.3828208,43280.0,43277.0,0.23456394]
[1644562142183,0.3250098,43280.0,43277.0,0.23456394]
[1644562142581,0.2671978,43280.0,43277.0,0.23456394]
[1644562143084,0.04770113,43281.0,43277.0,0.29236938]
[1644562143085,0.00140113,43281.0,43277.0,0.29236938]
[1644562143284,0.00140113,43281.0,43277.0,0.29226601]
[1644562144085,0.00140113,43281.0,43277.0,0.29279473]
[1644562144887,0.00140113,43281.0,43278.0,0.08389481]
[1644562145131,0.00139795,43279.0,43278.0,0.08389481]
[1644562145533,0.00139795,43279.0,43277.0,0.33509266]
[1644562145933,0.00139795,43279.0,43277.0,0.53509266]
[1644562146330,0.00139795,43279.0,43277.0,0.53456394]
[1644562147130,0.00139795,43279.0,43277.0,0.43456394]
[1644562148136,0.00139795,43279.0,43277.0,0.53456394]
[1644562149382,0.00139795,43279.0,43277.0,0.33456394]
[1644562149581,0.00139795,43279.0,43277.0,0.23456394]
[1644562149982,0.057803,43285.0,43277.0,0.23456394]
[1644562150195,0.057804,43283.0,43278.0,0.14907549]
[1644562150384,0.26961454,43284.0,43278.0,0.14907549]
[1644562151182,0.26961454,43284.0,43277.0,0.38447233]
[1644562151383,0.26961454,43284.0,43279.0,0.00061024]
[1644562152386,0.26961454,43284.0,43278.0,0.04990839]
[1644562152625,0.26961454,43284.0,43279.0,0.00061023]
[1644562153027,0.26961454,43284.0,43279.0,0.05841147]
[1644562153230,0.32741654,43284.0,43280.0,0.02321]
[1644562153530,0.0463,43283.0,43280.0,0.02321]
[1644562154531,0.104108,43283.0,43280.0,0.02321]
[1644562154730,0.057807,43282.0,43280.0,0.02321]
[1644562154930,0.28527203,43281.0,43280.0,0.02321]
[1644562156684,0.28527203,43281.0,43279.0,0.02321]
[1644562156884,0.057808,43280.0,43279.0,0.02321]
[1644562157684,0.057808,43280.0,43279.0,0.10321]
[1644562158886,0.32398922,43281.0,43279.0,0.10321]
[1644562159089,0.115614,43281.0,43279.0,0.10321]
[1644562159889,0.00139954,43280.0,43279.0,0.10321]
[1644562165583,0.057806,43281.0,43279.0,0.10321]
[1644562165885,0.057806,43281.0,43279.0,0.10312501]
[1644562166483,0.27126783,43280.0,43279.0,0.10312501]
[1644562168932,0.27118857,43280.0,43279.0,0.10312501]
[1644562169831,0.27258811,43280.0,43279.0,0.10312501]
[1644562170836,0.41888811,43280.0,43279.0,0.10312501]
[1644562171882,0.14769954,43280.0,43279.0,0.10312501]
[1644562172083,0.04769954,43280.0,43279.0,0.10312501]
[1644562174285,0.31838398,43280.0,43279.0,0.10312501]
[1644562174488,0.41838398,43280.0,43279.0,0.10312501]
[1644562175544,0.14769954,43280.0,43279.0,0.10312501]
[1644562176945,0.04769954,43280.0,43279.0,0.10312501]
[1644562183533,0.04769954,43280.0,43273.0,50.0]
[1644562183534,0.67629954,43280.0,43273.0,48.23732784]
[1644562183736,0.67629954,43280.0,43277.0,0.00061106]
[1644562183737,0.057821,43278.0,43277.0,0.00061106]
[1644562183930,0.057821,43278.0,43273.0,48.1179389]
[1644562183931,3.9,43277.0,43273.0,48.1179389]
[1644562184133,0.5786,43274.0,43273.0,48.1179389]
[1644562184433,0.7749,43274.0,43273.0,48.1179389]
[1644562184730,0.8249,43274.0,43273.0,48.1179389]
[1644562185130,0.91603649,43274.0,43273.0,48.1179389]
[1644562185331,0.882735,43274.0,43273.0,48.1179389]
[1644562185631,0.97387149,43274.0,43273.0,48.1179389]
[1644562185829,0.97813249,43274.0,43273.0,48.1179389]
[1644562186289,0.96887149,43274.0,43273.0,48.1179389]
[1644562186684,0.77387149,43274.0,43273.0,48.1179389]
[1644562187080,0.682735,43274.0,43273.0,48.1179389]
[1644562187282,0.6249,43274.0,43273.0,48.1179389]
[1644562187683,0.0463,43274.0,43273.0,48.1179389]
[1644562187883,0.0463,43274.0,43273.0,48.20282309]
[1644562190243,0.04796991,43274.0,43273.0,48.20282309]
[1644562190841,0.04796991,43274.0,43273.0,48.25273148]
[1644562190842,0.00166991,43274.0,43273.0,48.25273148]
[1644562191847,0.00166991,43274.0,43273.0,48.20282309]
[1644562193144,0.00166991,43274.0,43273.0,48.40282309]
[1644562193343,0.00166991,43274.0,43273.0,48.45273148]
[1644562193546,0.00166991,43274.0,43273.0,48.25273148]
[1644562194390,0.00166991,43274.0,43273.0,48.55273148]
[1644562194588,0.00166991,43274.0,43273.0,48.60273148]
[1644562194787,0.00166991,43274.0,43273.0,48.40273148]
[1644562195389,0.00166991,43274.0,43273.0,48.25273148]
[1644562196389,0.00166991,43274.0,43273.0,48.24773148]
[1644562197190,0.00166991,43274.0,43273.0,48.44773148]
[1644562197632,0.115612,43286.0,43279.0,0.37805349]
[1644562198435,0.05781,43280.0,43274.0,0.05780945]
[1644562198633,0.05781,43280.0,43275.0,0.04990839]
[1644562199131,0.05781,43280.0,43276.0,0.04990839]
[1644562199332,0.05781,43280.0,43277.0,0.35232277]
[1644562200232,0.05781,43280.0,43279.0,0.04990839]
[1644562200434,0.057806,43282.0,43279.0,0.04990839]
[1644562201033,0.057806,43282.0,43277.0,0.35232277]
[1644562201290,0.057806,43282.0,43281.0,0.26032384]
[1644562201687,0.0463,43284.0,43281.0,0.26032384]
[1644562201886,0.0463,43284.0,43281.0,0.31023223]
[1644562203097,0.00046739,43285.0,43283.0,0.14907549]
[1644562203290,0.00046739,43285.0,43284.0,0.04990839]
[1644562203888,0.001,43290.0,43284.0,0.13955897]
[1644562204088,0.001,43290.0,43289.0,0.19898388]
[1644562204290,0.001,43290.0,43289.0,0.25971388]
[1644562204891,0.001332,43295.0,43290.0,0.85]
[1644562205142,0.001332,43295.0,43294.0,0.2]
[1644562205338,0.001332,43295.0,43294.0,0.96791762]
[1644562206139,0.001332,43295.0,43294.0,1.02568562]
[1644562206937,0.001332,43295.0,43294.0,1.00100562]
[1644562207139,0.003,43300.0,43294.0,0.74323762]
[1644562207343,0.003,43300.0,43299.0,0.04990839]
[1644562207538,0.003,43300.0,43299.0,0.43525141]
[1644562208139,0.003,43300.0,43299.0,0.14212839]
[1644562208339,0.003,43300.0,43299.0,0.13712839]
[1644562208984,0.003,43300.0,43299.0,0.04490839]
[1644562211594,0.003,43300.0,43292.0,0.23112186]
[1644562211790,0.003,43300.0,43289.0,0.1181]
[1644562211791,0.0463,43299.0,43289.0,0.1181]
[1644562211992,0.0463,43299.0,43288.0,0.3724]
[1644562212290,0.0463,43299.0,43290.0,0.04490839]
[1644562212559,0.3463,43299.0,43293.0,0.36826713]
[1644562212751,0.00063396,43297.0,43293.0,0.36826713]
[1644562212952,0.104095,43296.0,43293.0,0.36826713]
[1644562213755,0.104095,43296.0,43294.0,0.04490839]
[1644562213952,0.104095,43296.0,43293.0,0.36826713]
[1644562215153,0.10381691,43296.0,43293.0,0.36826713]
[1644562215351,0.26722826,43295.0,43293.0,0.36826713]
[1644562215552,0.3142501,43295.0,43293.0,0.36826713]
[1644562215754,0.107792,43294.0,43293.0,0.36826713]
[1644562215952,0.107792,43294.0,43291.0,0.24240404]
[1644562215953,0.107792,43294.0,43289.0,0.04490839]
[1644562216154,0.26715199,43293.0,43291.0,0.0005466]
[1644562216397,0.0463,43292.0,43291.0,0.0005466]
[1644562217092,0.0463,43292.0,43289.0,0.59319714]
[1644562217394,0.0463,43292.0,43289.0,0.54883537]
[1644562218393,0.32638629,43291.0,43289.0,0.54828875]
[1644562218599,0.0463,43290.0,43289.0,0.54828875]
[1644562218794,0.0463,43290.0,43289.0,7.54828875]
[1644562219493,0.0463,43290.0,43289.0,7.0]
[1644562220540,0.31255101,43290.0,43289.0,7.0]